fUST/lending_fUST_20250601
["ID","MTS","AMOUNT","RATE_DAILY","PERIOD"]
[363379303,1748709040443,-430.0,0.00018078,2]
[363379305,1748709040454,-430.0,0.00018078,2]
[363379306,1748709040463,-430.0,0.00018078,2]
[363379308,1748709040472,-430.0,0.00018078,2]
[363379310,1748709040483,-430.0,0.00018078,2]
[363379311,1748709040492,-430.0,0.00018078,2]
[363379312,1748709040502,-1895.8,0.00018078,2]
[363379314,1748709040511,-430.0,0.00018078,2]
[363379316,1748709040521,-430.0,0.00018078,2]
[363379317,1748709040530,-430.0,0.00018078,2]
[363379319,1748709040540,-430.0,0.00018078,2]
[363379321,1748709040549,-430.0,0.00018078,2]
[363379322,1748709040559,-430.0,0.00018078,2]
[363379324,1748709040569,-430.0,0.00018078,2]
[363379325,1748709040580,-430.0,0.00018078,2]
[363379327,1748709040589,-430.0,0.00018078,2]
[363379328,1748709040599,-349.18,0.00018106,2]
[363379329,1748709040608,-447.92074179,0.00018106,2]
[363379330,1748709040618,-430.0,0.00018106,2]
[363379331,1748709040627,-430.0,0.00018106,2]
[363379332,1748709040637,-448.66104185,0.00018106,2]
[363379334,1748709040647,-430.0,0.00018106,2]
[363379335,1748709040656,-450.31551229,0.00018106,2]
[363379336,1748709040666,-430.0,0.00018106,2]
[363379337,1748709040675,-430.0,0.00018106,2]
[363379338,1748709040685,-573.34,0.00018107,2]
[363379339,1748709040694,-430.0,0.00018107,2]
[363379340,1748709040704,-430.0,0.00018107,2]
[363379341,1748709040713,-430.0,0.00018107,2]
[363379342,1748709040723,-430.0,0.00018107,2]
[363379343,1748709040732,-430.0,0.00018107,2]
[363379344,1748709040742,-430.0,0.00018107,2]
[363379345,1748709040751,-430.0,0.00018107,2]
[363379346,1748709040761,-357.88225952,0.00018108,2]
[363379347,1748709040771,-339.07964215,0.00018141,2]
[363379349,1748709040780,-502.64,0.000182,2]
[363379350,1748709040789,-430.0,0.000182,2]
[363379352,1748709040799,-430.0,0.000182,2]
[363379354,1748709040808,-370.9535,0.000182,2]
[363379356,1748709040818,-430.0,0.000182,2]
[363379358,1748709040828,-434.48,0.000182,2]
[363379360,1748709040838,-430.0,0.000182,2]
[363379362,1748709040847,-430.0,0.000182,2]
[363379364,1748709040857,-430.0,0.000182,2]
[363379365,1748709040866,-183.35401133,0.000182,2]
[363379366,1748709040876,-430.0,0.000182,2]
[363379368,1748709040886,-430.0,0.000182,2]
[363379369,1748709040895,-455.8275949,0.000182,2]
[363379370,1748709040905,-455.79757444,0.000182,2]
[363379371,1748709040915,-430.0,0.000182,2]
[363379373,1748709040925,-430.0,0.000182,2]
[363379374,1748709040934,-622.54,0.000182,2]
[363379375,1748709040947,-448.97832312,0.000182,2]
[363379376,1748709040956,-448.92870979,0.000182,2]
[363379377,1748709040968,-500.0,0.0001822,2]
[363379378,1748709040981,-500.0,0.0001822,2]
[363379379,1748709040991,-430.0,0.00018352,2]
[363379380,1748709041000,-376.99,0.00018352,2]
[363379381,1748709041010,-489.78191208,0.00018352,2]
[363379382,1748709041022,-430.0,0.00018352,2]
[363379383,1748709041031,-430.0,0.00018352,2]
[363379384,1748709041041,-1895.8,0.00018352,2]
[363379385,1748709041051,-430.0,0.00018352,2]
[363379386,1748709041060,-430.0,0.00018352,2]
[363379387,1748709041070,-430.0,0.00018352,2]
[363379388,1748709041082,-455.65984197,0.00018352,2]
[363379389,1748709041098,-430.0,0.00018352,2]
[363379390,1748709041112,-430.0,0.00018352,2]
[363379391,1748709041122,-430.0,0.00018352,2]
[363379392,1748709041131,-453.72756639,0.00018352,2]
[363379393,1748709041140,-430.0,0.00018352,2]
[363379394,1748709041150,-430.0,0.0001838,2]
[363379395,1748709041159,-430.0,0.0001838,2]
[363379396,1748709041169,-430.0,0.0001838,2]
[363379397,1748709041179,-430.0,0.0001838,2]
[363379398,1748709041189,-430.0,0.0001838,2]
[363379399,1748709041198,-430.0,0.00018381,2]
[363379400,1748709041208,-430.0,0.00018381,2]
[363379401,1748709041218,-430.0,0.00018381,2]
[363379402,1748709041228,-430.0,0.00018381,2]
[363379403,1748709041239,-430.0,0.00018381,2]
[363379404,1748709041248,-430.0,0.00018381,2]
[363379405,1748709041258,-430.0,0.00018381,2]
[363379406,1748709041267,-339.07964215,0.00018383,2]
[363379407,1748709041277,-430.0,0.00018473,2]
[363379408,1748709041287,-555.04,0.00018473,2]
[363379409,1748709041297,-430.0,0.00018473,2]
[363379410,1748709041306,-430.0,0.00018473,2]
[363379411,1748709041315,-430.0,0.00018473,2]
[363379412,1748709041333,-430.0,0.00018473,2]
[363379413,1748709041344,-430.0,0.00018473,2]
[363379414,1748709041354,-430.0,0.00018473,2]
[363379415,1748709041364,-430.0,0.00018473,2]
[363379416,1748709041373,-622.54,0.00018473,2]
[363379417,1748709041383,-1000.0,0.00018573,2]
[363379418,1748709041395,-339.07964215,0.00018624,2]
[363379419,1748709041406,-430.0,0.00018626,2]
[363379420,1748709041417,-430.0,0.00018626,2]
[363379421,1748709041429,-430.0,0.00018626,2]
[363379422,1748709041441,-1895.8,0.00018626,2]
[363379423,1748709041451,-430.0,0.00018626,2]
[363379424,1748709041461,-430.0,0.00018626,2]
[363379425,1748709041471,-430.0,0.00018626,2]
[363379426,1748709041481,-430.0,0.00018626,2]
[363379427,1748709041491,-441.52955834,0.00018626,2]
[363379428,1748709041501,-430.0,0.00018626,2]
[363379429,1748709041511,-430.0,0.00018626,2]
[363379430,1748709041520,-430.0,0.00018654,2]
[363379431,1748709041530,-430.0,0.00018654,2]
[363379432,1748709041540,-430.0,0.00018654,2]
[363379433,1748709041549,-430.0,0.00018654,2]
[363379434,1748709041559,-430.0,0.00018654,2]
[363379435,1748709041569,-430.0,0.00018655,2]
[363379436,1748709041580,-430.0,0.00018655,2]
[363379437,1748709041589,-430.0,0.00018655,2]
[363379438,1748709041599,-430.0,0.00018655,2]
[363379439,1748709041609,-430.0,0.00018655,2]
[363379440,1748709041619,-4527.26309224,0.00018697,2]
[363379441,1748709041629,-430.0,0.00018747,2]
[363379442,1748709041639,-430.0,0.00018747,2]
[363379443,1748709041649,-430.0,0.00018747,2]
[363379444,1748709041659,-430.0,0.00018747,2]
[363379445,1748709041669,-430.0,0.00018747,2]
[363379446,1748709041679,-430.0,0.00018747,2]
[363379447,1748709041691,-238.50306009,0.00018747,2]
[363379448,1748709041700,-622.54,0.00018747,2]
[363379449,1748709041710,-500.0,0.00018766,2]
[363379450,1748709041720,-1000.0,0.00018768,2]
[363379451,1748709041730,-509.77928341,0.00018768,2]
[363379452,1748709041740,-154.18970345,0.0001886,2]
[363379453,1748709041750,-339.07964215,0.00018866,2]
[363379454,1748709041761,-500.0,0.00018899,2]
[363379455,1748709041771,-430.0,0.000189,2]
[363379456,1748709041783,-430.0,0.000189,2]
[363379457,1748709041792,-430.0,0.000189,2]
[363379458,1748709041802,-1895.8,0.000189,2]
[363379459,1748709041814,-430.0,0.000189,2]
[363379460,1748709041825,-430.0,0.000189,2]
[363379461,1748709041836,-430.0,0.000189,2]
[363379462,1748709041847,-850.85746632,0.000189,2]
[363379463,1748709041857,-460.43142323,0.000189,2]
[363379464,1748709041867,-430.0,0.000189,2]
[363379465,1748709041876,-430.0,0.00018928,2]
[363379466,1748709041885,-430.0,0.00018928,2]
[363379467,1748709041897,-430.0,0.00018928,2]
[363379468,1748709041907,-430.0,0.00018928,2]
[363379469,1748709041916,-430.0,0.00018928,2]
[363379470,1748709041927,-430.0,0.00018929,2]
[363379471,1748709041936,-430.0,0.00018929,2]
[363379472,1748709041946,-430.0,0.00018929,2]
[363379473,1748709041959,-430.0,0.00018929,2]
[363379474,1748709041968,-430.0,0.00019021,2]
[363379475,1748709041982,-430.0,0.00019021,2]
[363379476,1748709041992,-430.0,0.00019021,2]
[363379477,1748709042001,-430.0,0.00019021,2]
[363379478,1748709042010,-430.0,0.00019021,2]
[363379479,1748709042021,-430.0,0.00019021,2]
[363379480,1748709042031,-622.54,0.00019021,2]
[363379481,1748709042041,-339.07964215,0.00019107,2]
[363379482,1748709042052,-219.67,0.00019174,2]
[363379483,1748709042062,-430.0,0.00019174,2]
[363379484,1748709042071,-62.56175296,0.00019174,2]
[363379485,1748709042088,-367.43824704,0.00019174,2]
[363379486,1748709042098,-1895.8,0.00019174,2]
[363379487,1748709042107,-233.28,0.00019174,2]
[363379488,1748709042118,-430.0,0.00019174,2]
[363379489,1748709042135,-430.0,0.00019174,2]
[363379490,1748709042147,-500.0,0.00019178,2]
[363379491,1748709042156,-289.45625349,0.00019178,2]
[363379492,1748709042166,-254.02550982,0.00019178,2]
[363379493,1748709042179,-245.97449018,0.00019178,2]
[363379494,1748709042188,-500.0,0.00019178,2]
[363379495,1748709042198,-500.0,0.00019178,2]
[363379496,1748709042207,-500.0,0.00019178,2]
[363379497,1748709042217,-394.02550982,0.00019178,2]
[363379498,1748709042246,-105.97449018,0.00019178,2]
[363379499,1748709042255,-500.0,0.00019178,2]
[363379500,1748709042267,-186.004779,0.00019178,2]
[363379501,1748709042279,-430.0,0.00019202,2]
[363379502,1748709042288,-430.0,0.00019202,2]
[363379503,1748709042298,-480.66066734,0.00019202,2]
[363379504,1748709042313,-430.0,0.00019202,2]
[363379505,1748709042324,-430.0,0.00019202,2]
[363379506,1748709042333,-430.0,0.00019203,2]
[363379507,1748709042344,-430.0,0.00019203,2]
[363379508,1748709042355,-263.51609182,0.00019203,2]
[363379509,1748709042366,-587.0,0.00019253,2]
[363379510,1748709042375,-587.0,0.00019253,2]
[363379511,1748709042385,-480.0,0.00019253,2]
[363379512,1748709042395,-362.0,0.00019253,2]
[363379513,1748709042403,-430.0,0.00019295,2]
[363379514,1748709042411,-430.0,0.00019295,2]
[363379515,1748709042420,-445.71113709,0.00019295,2]
[363379516,1748709042430,-430.0,0.00019295,2]
[363379517,1748709042439,-430.0,0.00019295,2]
[363379518,1748709042449,-622.54,0.00019295,2]
[363379519,1748709042458,-364.3142842,0.00019342,2]
[363379520,1748709042468,-364.3142842,0.00019342,2]
[363379521,1748709042477,-364.3142842,0.00019342,2]
[363379522,1748709042487,-364.3142842,0.00019342,2]
[363379523,1748709042497,-364.3142842,0.00019342,2]
[363379524,1748709042506,-339.07964215,0.00019348,2]
[363379525,1748709042516,-557.45254015,0.00019446,2]
[363379526,1748709042527,-544.66843119,0.00019446,2]
[363379527,1748709042540,-817.87902866,0.00019446,2]
[363379528,1748709042550,-119.11682666,0.00019448,2]
[363379529,1748709042562,-310.88317334,0.00019448,2]
[363379530,1748709042571,-430.0,0.00019448,2]
[363379531,1748709042581,-1895.8,0.00019448,2]
[363379532,1748709042591,-430.0,0.00019448,2]
[363379533,1748709042601,-430.0,0.00019476,2]
[363379534,1748709042610,-430.0,0.00019476,2]
[363379535,1748709042620,-26.24511218,0.00019476,2]
[363379536,1748709042631,-403.75488782,0.00019476,2]
[363379537,1748709042641,-430.0,0.00019477,2]
[363379538,1748709042650,-34.79375837,0.00019477,2]
[363379559,1748709043786,-430.0,0.00017559,2]
[363379560,1748709043797,-5000.0,0.00017747,2]
[363379561,1748709043807,-579.6,0.00017832,2]
[363379562,1748709043816,-430.0,0.00017833,2]
[363379563,1748709043826,-300.0,0.00017925,2]
[363379564,1748709043835,-579.6,0.00018106,2]
[363379565,1748709043845,-430.0,0.00018107,2]
[363379566,1748709043855,-579.6,0.0001838,2]
[363379567,1748709043865,-430.0,0.00018381,2]
[363379568,1748709043874,-579.6,0.00018654,2]
[363379569,1748709043884,-430.0,0.00018655,2]
[363379570,1748709043894,-579.6,0.00018928,2]
[363379571,1748709043903,-430.0,0.00018929,2]
[363379572,1748709043913,-328.62542414,0.00019203,2]
[363379573,1748709043922,-364.3142842,0.00019342,2]
[363379574,1748709043932,-395.20624163,0.00019477,2]
[363379575,1748709043942,-420.0,0.0001956,2]
[363379576,1748709043951,-430.0,0.00019569,2]
[363379577,1748709043961,-430.0,0.00019569,2]
[363379578,1748709043974,-430.0,0.00019569,2]
[363379579,1748709043984,-430.0,0.00019569,2]
[363379580,1748709043995,-622.54,0.00019569,2]
[363379581,1748709044005,-339.07964215,0.0001959,2]
[363379582,1748709044015,-430.0,0.00019722,2]
[363379583,1748709044025,-430.0,0.00019722,2]
[363379584,1748709044034,-430.55077886,0.00019722,2]
[363379585,1748709044049,-1465.24922114,0.00019722,2]
[363379586,1748709044059,-430.0,0.00019722,2]
[363379587,1748709044068,-430.0,0.0001975,2]
[363379588,1748709044078,-430.0,0.0001975,2]
[363379589,1748709044087,-430.0,0.0001975,2]
[363379590,1748709044097,-430.0,0.00019751,2]
[363379591,1748709044106,-430.0,0.00019751,2]
[363379592,1748709044116,-249.565,0.00019792,2]
[363379593,1748709044126,-339.07964215,0.00019831,2]
[363379594,1748709044135,-430.0,0.00019843,2]
[363379595,1748709044145,-430.0,0.00019843,2]
[363379596,1748709044154,-430.0,0.00019843,2]
[363379597,1748709044164,-430.0,0.00019843,2]
[363379598,1748709044174,-622.54,0.00019843,2]
[363379599,1748709044184,-154.18970345,0.00019893,2]
[363379600,1748709044193,-5235.89,0.00019894,2]
[363379601,1748709044203,-207.4,0.00019963,2]
[363379602,1748709044213,-5000.0,0.00019963,2]
[363379603,1748709044223,-700.0,0.00019964,2]
[363379604,1748709044232,-430.0,0.00019996,2]
[363379605,1748709044244,-430.0,0.00019996,2]
[363379606,1748709044254,-1895.8,0.00019996,2]
[363379607,1748709044263,-430.0,0.00019996,2]
[363379608,1748709044273,-13396.0,0.0002,2]
[363379609,1748709044283,-430.0,0.00020024,2]
[363379610,1748709044292,-430.0,0.00020024,2]
[363379611,1748709044301,-430.0,0.00020024,2]
[363379612,1748709044312,-430.0,0.00020025,2]
[363379613,1748709044321,-295.85396852,0.00020025,2]
[363379614,1748709044330,-163.9382195,0.00020027,2]
[363379615,1748709044340,-153.0,0.00020027,2]
[363379616,1748709044350,-153.0,0.00020027,2]
[363379617,1748709044360,-339.07964215,0.00020072,2]
[363379618,1748709044369,-560.0,0.00020117,2]
[363379619,1748709044379,-430.0,0.00020117,2]
[363379620,1748709044388,-491.6,0.00020117,2]
[363379621,1748709044398,-430.0,0.00020117,2]
[363379622,1748709044408,-151.0,0.00020117,2]
[363379623,1748709044418,-622.54,0.00020117,2]
[363379624,1748709044428,-151.0,0.00020117,2]
[363379625,1748709044438,-254.23416737,0.00020133,2]
[363379626,1748709044448,-634.48106751,0.00020161,2]
[363379627,1748709044457,-206.879709,0.00020187,2]
[363379628,1748709044467,-430.0,0.0002027,2]
[363379629,1748709044477,-430.0,0.0002027,2]
[363379630,1748709044488,-1895.8,0.0002027,2]
[363379631,1748709044498,-430.0,0.00020298,2]
[363379632,1748709044508,-430.0,0.00020298,2]
[363379633,1748709044656,-430.0,0.00020298,2]
[363379634,1748709044667,-391.6,0.00020299,2]
[363379635,1748709044677,-364.3142842,0.00020301,2]
[363379636,1748709044687,-364.3142842,0.00020301,2]
[363379637,1748709044697,-364.3142842,0.00020301,2]
[363379638,1748709044706,-339.07964215,0.00020314,3]
[363379639,1748709044716,-634.48106751,0.00020322,2]
[363379640,1748709044726,-500.0,0.00020332,2]
[363379641,1748709044735,-201.7,0.00020391,2]
[363379642,1748709044745,-430.0,0.00020391,2]
[363379643,1748709044755,-622.54,0.00020391,2]
[363379644,1748709044764,-430.0,0.00020544,2]
[363379645,1748709044774,-430.0,0.00020544,2]
[363379646,1748709044784,-1895.8,0.00020544,2]
[363379647,1748709044794,-500.0,0.00020546,2]
[363379648,1748709044803,-176.414694,0.00020548,2]
[363379649,1748709044813,-339.07964215,0.00020555,3]
[363379650,1748709044822,-1090.330125,0.0002057,3]
[363379651,1748709044833,-430.0,0.00020572,2]
[363379652,1748709044843,-430.0,0.00020572,2]
[363379653,1748709044853,-430.0,0.00020572,2]
[363379654,1748709044863,-500.7324718,0.00020614,2]
[363379655,1748709044873,-430.0,0.00020665,2]
[363379656,1748709044883,-622.54,0.00020665,2]
[363379657,1748709044892,-634.48106753,0.00020721,2]
[363379658,1748709044902,-339.07964215,0.00020797,4]
[363379659,1748709044911,-430.0,0.00020818,2]
[363379660,1748709044922,-430.0,0.00020818,2]
[363379661,1748709044931,-1895.8,0.00020818,2]
[363379662,1748709044942,-498.41,0.00020846,2]
[363379663,1748709044951,-430.0,0.00020846,2]
[363379664,1748709044961,-430.0,0.00020846,2]
[363379665,1748709044975,-267.4473596,0.00020849,2]
[363379666,1748709044986,-153.0,0.00020849,2]
[363379667,1748709044996,-153.0,0.00020849,2]
[363379668,1748709045006,-153.0,0.00020849,2]
[363379669,1748709045018,-154.18970345,0.00020927,2]
[363379670,1748709045028,-326.92,0.00020939,2]
[363379671,1748709045038,-622.54,0.00020939,2]
[363379672,1748709045048,-564.32399006,0.0002096,2]
[363379673,1748709045059,-151.0,0.00020989,2]
[363379674,1748709045070,-151.0,0.00020989,2]
[363379675,1748709045079,-500.0,0.00020989,2]
[363379676,1748709045090,-16455.49518509,0.00020989,2]
[363379677,1748709045105,-7935.02845491,0.00020989,2]
[363379678,1748709045115,-3852.4512052,0.0002099,2]
[363379687,1748709046779,-430.0,0.00017804,2]
[363379689,1748709046789,-115.41696035,0.00018078,2]
[363379691,1748709046801,-314.58303965,0.00018078,2]
[363379692,1748709046811,-430.0,0.00018352,2]
[363379694,1748709046821,-579.6,0.00019202,2]
[363379696,1748709046830,-579.6,0.00019476,2]
[363379697,1748709046839,-579.6,0.0001975,2]
[363379699,1748709046849,-579.6,0.00020024,2]
[363379700,1748709046858,-579.6,0.00020298,2]
[363379701,1748709046868,-579.6,0.00020572,2]
[363379702,1748709046877,-579.6,0.00020846,2]
[363379703,1748709046887,-18392.44771942,0.0002099,2]
[363379704,1748709046942,-7624.64321089,0.0002099,2]
[363379705,1748709046954,-1091.47,0.0002099,2]
[363379706,1748709046999,-430.0,0.00018626,2]
[363379708,1748709047008,-37548.30973478,0.0002099,2]
[363379771,1748709730073,186.191738,0.00013699,2]
[363379772,1748709924838,3379.1396857,0.00014415,2]
[363379773,1748709924861,4496.425,0.00014415,2]
[363379774,1748709924882,2124.4353143,0.00014415,2]
[363379781,1748709993273,204.771223,0.0001453,2]
[363379782,1748709993510,204.771223,0.0001453,120]
[363379783,1748710000715,2167.2184627,0.00015,2]
[363379784,1748710000739,2832.7815373,0.00015,2]
[363379785,1748710015748,1663.6434627,0.00015,2]
[363379786,1748710015771,3336.3565373,0.00015,2]
[363379787,1748710031485,1160.0684627,0.00015,2]
[363379788,1748710031508,3839.9315373,0.00015,2]
[363379789,1748710035361,656.4934627,0.00014334,2]
[363379790,1748710035382,4496.425,0.00014334,2]
[363379791,1748710035404,4496.425,0.00014334,2]
[363379792,1748710035424,4496.425,0.00014334,2]
[363379793,1748710035445,4496.425,0.00014334,2]
[363379794,1748710035466,4496.425,0.00014334,2]
[363379795,1748710035487,1761.3815373,0.00014334,2]
[363379797,1748710047263,2735.0434627,0.00015,2]
[363379798,1748710047286,2264.9565373,0.00015,2]
[363379799,1748710047774,803.352825,0.00014334,2]
[363379801,1748710053171,-224.72075039,0.00015053,2]
[363379802,1748710053195,-165.757811,0.00015115,2]
[363379803,1748710053219,-165.757811,0.00015153,2]
[363379804,1748710053242,-165.757811,0.00015191,2]
[363379805,1748710053270,-209.67965301,0.00015315,2]
[363379809,1748710129270,200.81551702,0.00014953,2]
[363379810,1748710156289,-4770.86097716,0.00015162,2]
[363379811,1748710164144,-229.13902284,0.00015162,2]
[363379812,1748710164166,-15.04109737,0.00015315,2]
[363379813,1748710164188,-562.70656596,0.00015315,2]
[363379814,1748710164210,-300.0,0.00015413,2]
[363379815,1748710164235,-500.0,0.00015414,2]
[363379816,1748710164258,-500.0,0.00015414,2]
[363379817,1748710164279,-500.0,0.00015414,2]
[363379818,1748710164305,-500.0,0.00015414,2]
[363379819,1748710164326,-500.0,0.00015414,2]
[363379820,1748710164349,-500.0,0.00015414,2]
[363379821,1748710164370,-500.0,0.00015414,2]
[363379822,1748710164393,-276.38874168,0.00015414,2]
[363379823,1748710164418,-500.0,0.00015414,2]
[363379824,1748710164441,-500.0,0.00015414,2]
[363379825,1748710164466,-500.0,0.00015414,2]
[363379826,1748710164490,-500.0,0.00015414,2]
[363379827,1748710164513,-500.0,0.00015414,2]
[363379828,1748710164536,-500.0,0.00015414,2]
[363379829,1748710164558,-500.0,0.00015414,2]
[363379830,1748710164582,-500.0,0.00015414,2]
[363379831,1748710164605,-500.0,0.00015414,2]
[363379832,1748710164627,-500.0,0.00015414,2]
[363379833,1748710164649,-500.0,0.00015414,2]
[363379834,1748710164670,-500.0,0.00015414,2]
[363379835,1748710164691,-500.0,0.00015414,2]
[363379836,1748710164713,-500.0,0.00015414,2]
[363379837,1748710164736,-500.0,0.00015414,2]
[363379838,1748710164758,-500.0,0.00015414,2]
[363379839,1748710164783,-500.0,0.00015414,2]
[363379840,1748710164804,-439.72126762,0.00015414,2]
[363379841,1748710164826,-500.0,0.00015414,2]
[363379842,1748710164849,-500.0,0.00015414,2]
[363379843,1748710164870,-500.0,0.00015414,2]
[363379844,1748710164891,-500.0,0.00015414,2]
[363379845,1748710164913,-500.0,0.00015414,2]
[363379846,1748710164935,-224.94768159,0.00015414,2]
[363379847,1748710164956,-500.0,0.00015414,2]
[363379848,1748710164978,-500.0,0.00015414,2]
[363379849,1748710164999,-500.0,0.00015414,2]
[363379850,1748710165021,-500.0,0.00015414,2]
[363379851,1748710165043,-478.86024594,0.00015414,2]
[363379852,1748710165065,-500.0,0.00015414,2]
[363379853,1748710165086,-321.36247972,0.00015414,2]
[363379854,1748710165109,-500.0,0.00015414,2]
[363379855,1748710165127,-538.24883396,0.00015414,2]
[363379856,1748710165148,-500.0,0.00015414,2]
[363379857,1748710165169,-574.08396694,0.00015414,2]
[363379858,1748710165192,-500.0,0.00015414,2]
[363379859,1748710165214,-500.0,0.00015414,2]
[363379860,1748710165237,-500.0,0.00015414,2]
[363379861,1748710165260,-500.0,0.00015414,2]
[363379862,1748710165281,-500.0,0.00015414,2]
[363379863,1748710165305,-500.0,0.00015414,2]
[363379864,1748710165326,-500.0,0.00015414,2]
[363379865,1748710165348,-500.0,0.00015414,2]
[363379866,1748710165372,-500.0,0.00015414,2]
[363379867,1748710165394,-500.0,0.00015414,2]
[363379868,1748710165414,-500.0,0.00015414,2]
[363379869,1748710165436,-500.0,0.00015414,2]
[363379870,1748710165457,-500.0,0.00015414,2]
[363379871,1748710165482,-500.0,0.00015414,2]
[363379872,1748710165505,-500.0,0.00015414,2]
[363379873,1748710165527,-500.0,0.00015414,2]
[363379874,1748710165551,-500.0,0.00015414,2]
[363379875,1748710165573,-500.0,0.00015414,2]
[363379876,1748710165598,-500.0,0.00015414,2]
[363379877,1748710165620,-500.0,0.00015414,2]
[363379878,1748710165643,-500.0,0.00015414,2]
[363379879,1748710165668,-543.0541858,0.00015414,2]
[363379880,1748710165693,-543.0541858,0.00015414,2]
[363379881,1748710165715,-543.0541858,0.00015414,2]
[363379882,1748710165738,-543.0541858,0.00015414,2]
[363379883,1748710165761,-543.0541858,0.00015414,2]
[363379884,1748710165785,-543.0541858,0.00015414,2]
[363379885,1748710165807,-543.0541858,0.00015414,2]
[363379886,1748710165830,-543.0541858,0.00015414,2]
[363379887,1748710165852,-500.0,0.00015414,2]
[363379888,1748710165875,-543.0541858,0.00015414,2]
[363379889,1748710165896,-240.83966943,0.00015414,2]
[363379890,1748710165920,-543.0541858,0.00015414,2]
[363379891,1748710165943,-500.0,0.00015414,2]
[363379892,1748710165967,-500.0,0.00015414,2]
[363379893,1748710165995,-543.0541858,0.00015414,2]
[363379894,1748710166019,-500.0,0.00015414,2]
[363379895,1748710166042,-500.0,0.00015414,2]
[363379896,1748710166066,-500.0,0.00015414,2]
[363379897,1748710166088,-500.0,0.00015414,2]
[363379898,1748710166110,-500.0,0.00015414,2]
[363379899,1748710166132,-163.30088023,0.00015414,2]
[363379900,1748710166158,-500.0,0.00015414,2]
[363379901,1748710166182,-500.0,0.00015414,2]
[363379902,1748710166204,-500.0,0.00015414,2]
[363379903,1748710166227,-500.0,0.00015414,2]
[363379904,1748710166249,-500.0,0.00015414,2]
[363379905,1748710166271,-500.0,0.00015414,2]
[363379906,1748710166295,-500.0,0.00015414,2]
[363379907,1748710166319,-500.0,0.00015414,2]
[363379908,1748710166344,-500.0,0.00015414,2]
[363379909,1748710166366,-500.0,0.00015414,2]
[363379910,1748710166393,-500.0,0.00015414,2]
[363379911,1748710166415,-500.0,0.00015414,2]
[363379912,1748710166437,-500.0,0.00015414,2]
[363379913,1748710166459,-500.0,0.00015414,2]
[363379914,1748710166484,-500.0,0.00015414,2]
[363379915,1748710166507,-500.0,0.00015414,2]
[363379916,1748710166529,-500.0,0.00015414,2]
[363379917,1748710166551,-500.0,0.00015414,2]
[363379918,1748710166574,-804.07055256,0.00015414,2]
[363379919,1748710166596,-1200.0,0.00015415,2]
[363379920,1748710166617,-300.0,0.00015415,2]
[363379921,1748710166638,-300.0,0.00015416,2]
[363379922,1748710166660,-300.0,0.00015416,2]
[363379923,1748710166680,-300.0,0.00015416,2]
[363379924,1748710166700,-300.0,0.00015416,2]
[363379925,1748710166721,-12958.4720155,0.00015418,2]
[363379959,1748710231811,-1121.83693986,0.00015245,2]
[363379960,1748710231822,-5000.0,0.00015264,2]
[363379961,1748710231832,-1411.3359281,0.00015418,2]
[363379963,1748710231842,-160.0,0.00015566,2]